bitfinex-derivatives/quotes_BTCF0:USTF0_20251204
["timestamp","ask_amount","ask_price","bid_price","bid_amount"]
[1764820306597,0.09060025,93605.0,93604.0,0.0581]
[1764820307192,0.08760025,93605.0,93604.0,0.0571]
[1764820307397,0.08860025,93605.0,93604.0,0.0571]
[1764820307795,0.08760025,93605.0,93604.0,0.0571]
[1764820308093,0.08760025,93605.0,93604.0,0.0581]
[1764820309696,0.03016025,93605.0,93604.0,0.0581]
[1764820310895,0.03016025,93605.0,93604.0,0.0571]
[1764820311192,0.03016025,93605.0,93604.0,0.0581]
[1764820312900,0.05835025,93605.0,93604.0,0.0581]
[1764820315088,0.03016025,93605.0,93604.0,0.0581]
[1764820317995,0.05835025,93605.0,93604.0,0.0581]
[1764820318897,0.09828255,93605.0,93604.0,0.03079]
[1764820319393,0.08760025,93605.0,93604.0,0.0581]
[1764820321095,0.08760025,93605.0,93604.0,0.0571]
[1764820321308,0.08760025,93605.0,93604.0,0.0581]
[1764820321607,0.08760025,93605.0,93604.0,0.001]
[1764820322708,0.0681243,93587.0,93584.0,0.09590025]
[1764820322901,0.0981243,93587.0,93577.0,0.09590025]
[1764820323102,0.0981243,93587.0,93575.0,0.09590025]
[1764820323310,0.0981243,93587.0,93572.0,0.010686]
[1764820323702,0.0981243,93587.0,93578.0,0.0106853]
[1764820324098,0.0991243,93587.0,93586.0,0.01804033]
[1764820324810,0.0991243,93587.0,93586.0,0.01904033]
[1764820326106,0.0991243,93587.0,93586.0,0.04734033]
[1764820326312,0.0991243,93587.0,93586.0,0.07499033]
[1764820326809,0.08844,93587.0,93586.0,0.08567483]
[1764820327309,0.05919,93587.0,93586.0,0.08567483]
[1764820327615,0.031,93587.0,93586.0,0.08567483]
[1764820330212,0.001,93587.0,93586.0,0.08567483]
[1764820330811,0.001,93587.0,93586.0,0.18152371]
[1764820331318,0.001,93587.0,93586.0,0.08567483]
[1764820333413,0.0574,93587.0,93586.0,0.08567483]
[1764820333615,0.0574,93587.0,93586.0,0.18154237]
[1764820335319,0.0574,93587.0,93586.0,0.08567483]
[1764820335716,0.0574,93587.0,93586.0,0.18154609]
[1764820335919,0.0874,93587.0,93586.0,0.18154609]
[1764820336117,0.0874,93587.0,93586.0,0.08567483]
[1764820336610,0.06036,93587.0,93586.0,0.08567483]
[1764820336812,0.0874,93587.0,93586.0,0.08567483]
[1764820337016,0.0874,93587.0,93586.0,0.07499033]
[1764820340319,0.0874,93587.0,93586.0,0.01904033]
[1764820344026,0.0874,93587.0,93586.0,0.07499033]
[1764820348432,0.0874,93587.0,93586.0,0.07399033]
[1764820348940,0.0874,93587.0,93586.0,0.07299033]
[1764820349138,0.0874,93587.0,93586.0,0.01704033]
[1764820350642,0.0884,93587.0,93586.0,0.01704033]
[1764820351439,0.0914,93587.0,93586.0,0.01704033]
[1764820352041,0.0904,93587.0,93586.0,0.01704033]
[1764820352343,0.0914,93587.0,93586.0,0.01704033]
[1764820353042,0.0874,93587.0,93586.0,0.01604033]
[1764820353244,0.0914,93587.0,93586.0,0.01704033]
[1764820353737,0.0904,93587.0,93586.0,0.01704033]
[1764820353937,0.0914,93587.0,93586.0,0.01704033]
[1764820354538,0.0874,93587.0,93586.0,0.01604033]
[1764820354737,0.0914,93587.0,93586.0,0.01704033]
[1764820355139,0.0874,93587.0,93586.0,0.01604033]
[1764820355346,0.0914,93587.0,93586.0,0.01704033]
[1764820355743,0.0914,93587.0,93586.0,0.01604033]
[1764820355942,0.0904,93587.0,93586.0,0.01704033]
[1764820357049,0.0894,93587.0,93586.0,0.01704033]
[1764820357347,0.0904,93587.0,93586.0,0.01704033]
[1764820357645,0.0914,93587.0,93586.0,0.01704033]
[1764820359148,0.0914,93587.0,93586.0,0.01604033]
[1764820359348,0.0914,93587.0,93586.0,0.01704033]
[1764820359545,0.0904,93587.0,93586.0,0.01704033]
[1764820359848,0.0914,93587.0,93586.0,0.01704033]
[1764820360839,0.0874,93587.0,93586.0,0.01704033]
[1764820361041,0.0914,93587.0,93586.0,0.01704033]
[1764820361242,0.0914,93587.0,93586.0,0.07349033]
[1764820361441,0.0904,93587.0,93586.0,0.01704033]
[1764820361946,0.0904,93587.0,93586.0,0.07249033]
[1764820361947,0.0874,93587.0,93586.0,0.07249033]
[1764820362148,0.0904,93587.0,93586.0,0.07349033]
[1764820362650,0.0894,93587.0,93586.0,0.07349033]
[1764820362853,0.0904,93587.0,93586.0,0.07349033]
[1764820363548,0.0894,93587.0,93586.0,0.07349033]
[1764820364642,0.0874,93587.0,93586.0,0.07349033]
[1764820367247,0.0864,93587.0,93586.0,0.07249033]
[1764820367446,0.0874,93587.0,93586.0,0.07349033]
[1764820367849,0.0864,93587.0,93586.0,0.07249033]
[1764820368051,0.0874,93587.0,93586.0,0.07349033]
[1764820374549,0.031,93587.0,93586.0,0.07349033]
[1764820378655,0.08723,93587.0,93586.0,0.07349033]
[1764820379449,0.08723,93587.0,93586.0,0.04604033]
[1764820381151,0.08723,93587.0,93586.0,0.01704033]
[1764820386368,0.08723,93587.0,93586.0,0.07399033]
[1764820390370,0.08723,93587.0,93586.0,0.04509033]
[1764820391263,0.08723,93587.0,93586.0,0.01704033]
[1764820391870,0.08723,93587.0,93586.0,0.07399033]
[1764820392869,0.08723,93587.0,93586.0,0.04509033]
[1764820393370,0.08723,93587.0,93586.0,0.01704033]
[1764820393567,0.08723,93587.0,93586.0,0.07399033]
[1764820396174,0.08723,93587.0,93586.0,0.04509033]
[1764820397278,0.08723,93587.0,93586.0,0.07399033]
[1764820397776,0.08723,93587.0,93586.0,0.01704033]
[1764820400081,0.08723,93587.0,93586.0,0.01604033]
[1764820400282,0.08723,93587.0,93586.0,0.01704033]
[1764820400283,0.09023,93587.0,93586.0,0.01704033]
[1764820400578,0.09023,93587.0,93586.0,0.07399033]
[1764820401681,0.08623,93587.0,93586.0,0.07299033]
[1764820401881,0.09023,93587.0,93586.0,0.07399033]
[1764820403989,0.034,93587.0,93586.0,0.07399033]
[1764820404186,0.09095,93587.0,93586.0,0.07399033]
[1764820406687,0.09095,93587.0,93586.0,0.04509033]
[1764820407595,0.09095,93587.0,93586.0,0.01704033]
[1764820412595,0.09095,93587.0,93586.0,0.07399033]
[1764820414087,0.08995,93587.0,93586.0,0.01704033]
[1764820414295,0.09095,93587.0,93586.0,0.01704033]
[1764820414588,0.08995,93587.0,93586.0,0.01704033]
[1764820415194,0.09095,93587.0,93586.0,0.01704033]
[1764820415897,0.08795,93587.0,93586.0,0.01604033]
[1764820416094,0.09095,93587.0,93586.0,0.01704033]
[1764820421905,0.09095,93587.0,93586.0,0.04464033]
[1764820424707,0.09095,93587.0,93586.0,0.07328033]
[1764820437908,0.034,93587.0,93586.0,0.07328033]
[1764820438113,0.0631,93587.0,93586.0,0.07328033]
[1764820438817,0.034,93587.0,93586.0,0.07328033]
[1764820442118,0.0631,93587.0,93586.0,0.07328033]
[1764820442315,0.09021,93587.0,93586.0,0.07328033]
[1764820444821,0.034,93587.0,93586.0,0.07328033]
[1764820446519,0.09318,93587.0,93586.0,0.07328033]
[1764820447723,0.034,93587.0,93586.0,0.07328033]
[1764820447923,0.06389,93587.0,93586.0,0.07328033]
[1764820448125,0.09318,93587.0,93586.0,0.07328033]
[1764820448825,0.034,93587.0,93586.0,0.07328033]
[1764820449027,0.06389,93587.0,93586.0,0.07328033]
[1764820449734,0.034,93587.0,93586.0,0.07328033]
[1764820457922,0.09318,93587.0,93586.0,0.07328033]
[1764820459028,0.09318,93587.0,93586.0,0.04464033]
[1764820459233,0.09318,93587.0,93586.0,0.01704033]
[1764820459534,0.09318,93587.0,93586.0,0.04702033]
[1764820460931,0.09318,93587.0,93586.0,0.07694033]
[1764820463733,0.09318,93587.0,93586.0,0.01704033]
[1764820463933,0.09318,93587.0,93586.0,0.04702033]
[1764820464237,0.09318,93587.0,93586.0,0.07694033]
[1764820465135,0.09118,93587.0,93586.0,0.07694033]
[1764820475950,0.09118,93587.0,93586.0,0.01704033]
[1764820476752,0.09118,93587.0,93586.0,0.07423033]
[1764820478852,0.032,93587.0,93586.0,0.07423033]
[1764820479358,0.09103,93587.0,93586.0,0.07423033]
[1764820479552,0.032,93587.0,93586.0,0.07423033]
[1764820480457,0.0592,93587.0,93586.0,0.07423033]
[1764820482060,0.032,93587.0,93586.0,0.07423033]
[1764820482250,0.0592,93587.0,93586.0,0.07423033]
[1764820483962,0.08648,93587.0,93586.0,0.07423033]
[1764820485852,0.0592,93587.0,93586.0,0.07423033]
[1764820486665,0.032,93587.0,93586.0,0.07423033]
[1764820506868,0.08999,93587.0,93586.0,0.07423033]
[1764820507371,0.06157,93587.0,93586.0,0.07423033]
[1764820507769,0.032,93587.0,93586.0,0.07423033]
[1764820511275,0.08999,93587.0,93586.0,0.07423033]
[1764820511776,0.032,93587.0,93586.0,0.07423033]
[1764820514674,0.032,93587.0,93586.0,0.17010159]
[1764820515165,0.032,93587.0,93586.0,0.07423033]
[1764820519687,0.08999,93587.0,93586.0,0.07423033]
[1764820537789,0.08899,93587.0,93586.0,0.07323033]
[1764820537992,0.08999,93587.0,93586.0,0.07823033]
[1764820538690,0.08899,93587.0,93586.0,0.07823033]
[1764820548298,0.031,93587.0,93586.0,0.07823033]
[1764820548895,0.06051,93587.0,93586.0,0.07823033]
[1764820550501,0.08975,93587.0,93586.0,0.07823033]
[1764820550800,0.08975,93587.0,93586.0,0.02104033]
[1764820551008,0.08975,93587.0,93586.0,0.11721513]
[1764820551192,0.08975,93587.0,93586.0,0.02104033]
[1764820551597,0.08975,93587.0,93586.0,0.03172483]
[1764820552396,0.08975,93587.0,93586.0,0.06065483]
[1764820552698,0.08975,93587.0,93586.0,0.08818483]
[1764820554901,0.08975,93587.0,93586.0,0.07750033]
[1764820561914,0.08975,93587.0,93586.0,0.04997033]
[1764820562208,0.08975,93587.0,93586.0,0.07750033]
[1764820567400,0.08975,93587.0,93586.0,0.02104033]
[1764820570005,0.05773,93567.0,93566.0,0.05602719]
[1764820570217,0.08773,93567.0,93566.0,0.05602719]
[1764820570407,0.08773,93567.0,93566.0,0.06826586]
[1764820570811,0.0984166,93567.0,93566.0,0.06826586]
[1764820571711,0.1004166,93567.0,93566.0,0.07226586]
[1764820572120,0.1004166,93567.0,93566.0,0.07626586]
[1764820572617,0.0984166,93567.0,93566.0,0.07226586]
[1764820572918,0.0994166,93567.0,93566.0,0.07026586]
[1764820579914,0.05773,93559.0,93558.0,0.0001305]
[1764820580216,0.05773,93559.0,93536.0,0.01739]
[1764820580217,0.068419,93546.0,93545.0,0.0961748]
[1764820580416,0.068419,93546.0,93536.0,0.15183037]
[1764820580417,0.05773,93537.0,93536.0,0.07315]
[1764820580610,0.08773,93537.0,93536.0,0.07315]
[1764820581421,0.08773,93537.0,93536.0,0.08560803]
[1764820581913,0.08973,93537.0,93536.0,0.08760803]
[1764820582423,0.08973,93537.0,93536.0,0.08560803]
[1764820582424,0.08773,93537.0,93536.0,0.08560803]
[1764820582620,0.08973,93537.0,93536.0,0.09160803]
[1764820589216,0.08973,93537.0,93536.0,0.01845803]
[1764820592618,0.08973,93537.0,93536.0,0.07421803]
[1764820599832,0.032,93537.0,93536.0,0.09215803]
[1764820600927,0.002,93537.0,93536.0,0.09215803]
[1764820601132,0.00016034,93546.0,93545.0,0.07069]
[1764820601325,0.04016034,93546.0,93545.0,0.07069]
[1764820601917,0.04016034,93546.0,93545.0,0.0813791]
[1764820603029,0.04016034,93546.0,93545.0,0.0823791]
[1764820603330,3.4e-07,93546.0,93545.0,0.0823791]
[1764820603527,0.03000034,93546.0,93545.0,0.0823791]
[1764820604124,0.03,93546.0,93545.0,0.0813791]
[1764820604324,0.031,93546.0,93545.0,0.0823791]
[1764820604526,0.001,93546.0,93545.0,0.0823791]
[1764820605121,0.00016034,93555.0,93545.0,0.0823791]
[1764820605122,0.00016034,93555.0,93554.0,0.0693981]
[1764820605323,0.01584,93576.0,93558.0,0.0693977]
[1764820605531,0.0265256,93576.0,93558.0,0.0693977]
[1764820605831,0.01703,93570.0,93558.0,0.0693977]
[1764820606429,0.00016034,93568.0,93558.0,0.0693977]
[1764820606733,0.00109567,93559.0,93558.0,0.0723977]
[1764820607537,0.02956567,93559.0,93558.0,0.0723977]
[1764820608128,0.00109567,93559.0,93558.0,0.0723977]
[1764820611239,0.05729567,93559.0,93558.0,0.0723977]
[1764820613336,0.08729567,93559.0,93558.0,0.06171]
[1764820613633,0.09798317,93559.0,93558.0,0.06171]
[1764820613847,0.09798317,93559.0,93558.0,0.003]
[1764820614424,0.09798317,93559.0,93558.0,0.06171]
[1764820614625,0.08729567,93559.0,93558.0,0.06171]
[1764820620146,0.08729567,93559.0,93558.0,0.003]
[1764820621040,0.08729567,93559.0,93549.0,0.00016034]
[1764820621041,0.0839186,93550.0,93549.0,0.00016034]
[1764820621353,0.1139186,93550.0,93549.0,0.00016034]
[1764820621546,0.0562,93537.0,93536.0,0.04225803]
[1764820621740,0.01703,93528.0,93527.0,0.0694012]
[1764820622051,0.10323,93528.0,93527.0,0.08118519]
[1764820622731,0.10323,93528.0,93527.0,0.08718519]
[1764820623044,0.10523,93528.0,93527.0,0.09118519]
[1764820624436,0.10523,93528.0,93527.0,0.08718519]
[1764820624644,0.10523,93528.0,93527.0,0.09018519]
[1764820625141,0.10423,93528.0,93527.0,0.08518519]
[1764820625340,0.10423,93528.0,93527.0,0.08218519]
[1764820625846,0.10423,93528.0,93527.0,0.08318519]
[1764820626145,0.10423,93528.0,93527.0,0.08418519]
[1764820630647,0.0872,93528.0,93527.0,0.08418519]
[1764820630846,0.031,93528.0,93527.0,0.08418519]
[1764820631642,0.00016034,93537.0,93536.0,0.0686102]
[1764820631849,0.06899034,93537.0,93536.0,0.0686102]
[1764820632449,0.09703034,93537.0,93536.0,0.0686102]
[1764820632850,0.09803034,93537.0,93536.0,0.0686102]
[1764820633644,0.04116034,93537.0,93536.0,0.0686102]
[1764820634952,0.06999034,93537.0,93536.0,0.0686102]
[1764820635849,0.04116034,93537.0,93536.0,0.0686102]
[1764820636049,0.06999034,93537.0,93536.0,0.0686102]
[1764820636356,0.09803034,93537.0,93536.0,0.0686102]
[1764820642161,0.09803034,93537.0,93536.0,0.05792]
[1764820642359,0.09803034,93537.0,93536.0,0.02924]
[1764820642557,0.09803034,93537.0,93536.0,0.0399302]
[1764820642956,0.09803034,93537.0,93536.0,0.0686102]
[1764820644253,0.09803034,93537.0,93536.0,0.0106902]
[1764820644450,0.07383,93535.0,93534.0,0.0961748]
[1764820644660,0.05687,93534.0,93533.0,0.1540948]
[1764820644864,0.08687,93534.0,93533.0,0.05792]
[1764820646767,0.05687,93528.0,93527.0,0.08039519]
[1764820647064,0.08687,93528.0,93527.0,0.08039519]
[1764820647459,0.08687,93528.0,93527.0,0.17656999]
[1764820648055,0.08787,93528.0,93527.0,0.17856999]
[1764820648467,0.08787,93528.0,93527.0,0.08239519]
[1764820648861,0.08787,93528.0,93527.0,0.08339519]
[1764820663379,0.10483,93528.0,93527.0,0.08339519]
[1764820676682,0.1155211,93528.0,93527.0,0.01478399]
[1764820680492,0.11563729,93528.0,93527.0,0.01478399]
[1764820680792,0.11563729,93528.0,93527.0,0.11100645]
[1764820680994,0.11563729,93528.0,93527.0,0.01478399]
[1764820683087,0.10494619,93528.0,93527.0,0.01478399]
[1764820684494,0.10494619,93528.0,93527.0,0.07151399]
[1764820684683,0.08798619,93528.0,93527.0,0.07151399]
[1764820685384,0.03111619,93528.0,93527.0,0.07151399]
[1764820685685,0.03111619,93528.0,93527.0,0.20595436]
[1764820685890,0.05563034,93537.0,93536.0,0.05841]
[1764820686096,0.09563034,93537.0,93536.0,0.05841]
[1764820686987,0.09563034,93537.0,93536.0,0.0691002]
[1764820688798,0.09663034,93537.0,93536.0,0.0711002]
[1764820689391,0.09663034,93537.0,93536.0,0.0721002]
[1764820689800,0.09663034,93537.0,93536.0,0.0741002]
[1764820689989,0.09663034,93537.0,93536.0,0.0731002]
[1764820690189,0.09663034,93537.0,93536.0,0.0741002]
[1764820690792,0.09663034,93537.0,93536.0,0.005]
[1764820691197,0.09663034,93537.0,93536.0,0.06341]
[1764820691394,0.09663034,93537.0,93536.0,0.15950169]
[1764820691699,0.09563034,93537.0,93536.0,0.05941]
[1764820691902,0.09663034,93537.0,93536.0,0.15950169]
[1764820692093,0.09663034,93537.0,93536.0,0.06341]
[1764820695099,0.09663034,93537.0,93536.0,0.06241]
[1764820695396,0.09663034,93537.0,93536.0,0.06341]
[1764820697806,0.09663034,93537.0,93536.0,0.005]
[1764820701196,0.09663034,93537.0,93536.0,0.06341]
[1764820701506,0.09663034,93537.0,93536.0,0.03496]
[1764820702202,0.09663034,93537.0,93536.0,0.005]
[1764820702810,0.09663034,93537.0,93536.0,0.06341]
[1764820708108,0.06897034,93537.0,93536.0,0.15950169]
[1764820708309,0.00116034,93537.0,93536.0,0.06341]
[1764820708510,0.01672,93548.0,93547.0,0.0690989]
[1764820708511,0.07219,93548.0,93547.0,0.0690989]
[1764820708714,0.10219,93548.0,93547.0,0.0690989]
[1764820709014,0.08547,93548.0,93547.0,0.0690989]
[1764820709211,0.03,93548.0,93547.0,0.0690989]
[1764820710713,0.031,93548.0,93547.0,0.0710989]
[1764820711599,0.031,93548.0,93547.0,0.0750989]
[1764820711813,0.032,93548.0,93547.0,0.0780989]
[1764820714012,0.05981,93548.0,93547.0,0.0780989]
[1764820714213,0.08688,93548.0,93547.0,0.0780989]
[1764820714805,0.08688,93548.0,93547.0,0.0196889]
[1764820715011,0.08688,93548.0,93547.0,0.5559089]
[1764820716617,0.08688,93548.0,93547.0,0.5711889]
[1764820717517,0.08688,93548.0,93547.0,0.0196889]
[1764820717920,0.08688,93548.0,93547.0,0.0475489]
[1764820718620,0.08688,93548.0,93547.0,0.03686]
[1764820719022,0.08688,93548.0,93547.0,0.009]
[1764820719523,0.08688,93548.0,93547.0,0.03686]
[1764820719824,0.08688,93548.0,93547.0,0.06458]
[1764820721325,0.08688,93548.0,93547.0,0.16049713]
[1764820721829,0.08688,93548.0,93547.0,0.10491713]
[1764820722023,0.08688,93548.0,93547.0,0.13373713]
[1764820722332,0.08688,93548.0,93547.0,0.16372713]
[1764820725332,0.08688,93548.0,93547.0,0.06781]
[1764820730339,0.08688,93548.0,93547.0,0.009]
[1764820730541,0.08688,93548.0,93547.0,0.06781]
[1764820738136,0.10478,93548.0,93547.0,0.06781]
[1764820747448,0.10478,93548.0,93547.0,0.20230181]
[1764820752854,0.10478,93548.0,93547.0,0.009]
[1764820753158,0.10478,93548.0,93547.0,0.10522282]
[1764820753356,0.10478,93548.0,93547.0,0.009]
[1764820761662,0.10478,93548.0,93547.0,0.005]
[1764820761862,0.10278,93548.0,93546.0,0.010689]
[1764820762064,0.10378,93548.0,93547.0,0.001]
[1764820762664,0.05577,93547.0,93546.0,0.010689]
[1764820762858,0.08577,93547.0,93546.0,0.066779]
[1764820764159,0.08577,93547.0,93546.0,0.067779]
[1764820764860,0.08677,93547.0,93546.0,0.069779]
[1764820765266,0.08577,93547.0,93546.0,0.067779]
[1764820765456,0.08677,93547.0,93546.0,0.071779]
[1764820777677,0.001,93547.0,93546.0,0.071779]
[1764820778175,0.001,93547.0,93546.0,0.20627081]
[1764820780165,0.001,93547.0,93546.0,0.071779]
[1764820780470,0.001,93547.0,93546.0,0.20629116]
[1764820783172,0.05759034,93557.0,93556.0,0.0692079]
[1764820784876,0.05759034,93557.0,93556.0,0.0712079]
[1764820785179,0.05859034,93557.0,93556.0,0.0712079]
[1764820790275,0.05859034,93557.0,93556.0,0.0126879]
[1764820790478,0.05859034,93557.0,93556.0,0.0419879]
[1764820791082,0.05859034,93557.0,93556.0,0.0712079]
[1764820791473,0.08759034,93557.0,93556.0,0.0692079]
[1764820791668,0.08859034,93557.0,93556.0,0.0722079]
[1764820792375,0.05859034,93557.0,93556.0,0.0722079]
[1764820792982,0.08859034,93557.0,93556.0,0.0722079]
[1764820793180,0.05859034,93557.0,93556.0,0.0722079]
[1764820793677,0.08859034,93557.0,93556.0,0.0722079]
[1764820793984,0.08859034,93557.0,93556.0,0.0732079]
[1764820794481,0.05859034,93557.0,93556.0,0.0742079]
[1764820803487,0.05859034,93557.0,93556.0,0.0850779]
[1764820803488,0.00116034,93557.0,93556.0,0.0850779]
[1764820803690,0.05643,93576.0,93575.0,0.0647857]
[1764820804092,0.0307,93584.0,93583.0,0.0647848]
[1764820804093,0.08713,93584.0,93583.0,0.0647848]
[1764820804293,0.0698,93584.0,93583.0,0.0647848]
[1764820804600,0.01337,93584.0,93583.0,0.0647848]
[1764820805098,0.01337,93584.0,93583.0,0.14954398]
[1764820805395,0.01337,93584.0,93583.0,0.0647848]
[1764820806394,0.0698,93584.0,93583.0,0.0657848]
[1764820806595,0.0698,93584.0,93583.0,0.0551]
[1764820806788,0.0708,93584.0,93583.0,0.14472245]
[1764820807092,0.0708,93584.0,93583.0,0.0591]
[1764820807286,0.0718,93584.0,93583.0,0.16394076]
[1764820807794,0.0698,93584.0,93583.0,0.15394076]
[1764820808096,0.0708,93584.0,93583.0,0.15594076]
[1764820808297,0.0708,93584.0,93583.0,0.0601]
[1764820808595,0.0708,93584.0,93583.0,0.0591]
[1764820809796,0.0708,93584.0,93583.0,0.0581]
[1764820811003,0.0698,93584.0,93583.0,0.0541]
[1764820811182,0.0708,93584.0,93583.0,0.0581]
[1764820813098,0.0708,93584.0,93583.0,0.005]
[1764820813291,0.1108,93584.0,93583.0,0.004]
[1764820813488,0.07376,93575.0,93574.0,0.00016034]
[1764820813797,0.10376,93575.0,93574.0,0.00016034]
[1764820816099,0.10476,93575.0,93574.0,0.00116034]
[1764820816502,0.10376,93575.0,93574.0,0.00016034]
[1764820816800,0.10476,93575.0,93574.0,0.00116034]
[1764820823496,0.0106868,93566.0,93559.0,0.0106875]
[1764820823696,0.05643,93559.0,93558.0,0.09584076]
[1764820823902,0.05643,93556.0,93555.0,0.16062866]
[1764820824104,0.08643,93556.0,93555.0,0.16062866]
[1764820824909,0.08643,93556.0,93555.0,0.24812331]
[1764820825998,0.08643,93556.0,93555.0,0.25212331]
[1764820826310,0.08843,93556.0,93555.0,0.26112331]
[1764820826910,0.08743,93556.0,93555.0,0.25312331]
[1764820828013,0.05743,93556.0,93555.0,0.25312331]
[1764820828211,0.05743,93556.0,93555.0,0.25012331]
[1764820828408,0.05643,93556.0,93555.0,0.24912331]
[1764820828710,0.001,93556.0,93555.0,0.25012331]
[1764820828903,0.001,93556.0,93555.0,0.16815255]
[1764820829104,0.001,93556.0,93555.0,0.16915255]
[1764820829505,0.00016034,93565.0,93564.0,0.064787]
[1764820829704,0.00016034,93565.0,93564.0,0.16062358]
[1764820829913,0.00016034,93565.0,93564.0,0.064787]
[1764820831814,0.00216034,93565.0,93564.0,0.065787]
[1764820832707,0.00216034,93565.0,93564.0,0.073787]
[1764820832909,0.00216034,93565.0,93564.0,0.077787]
[1764820833305,0.00216034,93565.0,93564.0,0.078787]
[1764820840813,0.01733,93580.0,93579.0,0.0106853]
[1764820841022,0.05644,93580.0,93579.0,0.0702853]
[1764820841508,0.05644,93580.0,93579.0,0.16624271]
[1764820842110,0.05744,93580.0,93579.0,0.16724271]
[1764820842316,0.05744,93580.0,93579.0,0.0712853]
[1764820842518,0.07513,93580.0,93579.0,0.0712853]
[1764820842813,0.07513,93580.0,93579.0,0.16725481]
[1764820843213,0.07613,93580.0,93579.0,0.17625481]
[1764820843415,0.07613,93580.0,93579.0,0.17925481]
[1764820843916,0.07613,93580.0,93579.0,0.16856951]
[1764820844114,0.07613,93580.0,93579.0,0.16556951]
[1764820844314,0.07613,93580.0,93579.0,0.0706]
[1764820845020,0.07413,93580.0,93579.0,0.0606]
[1764820845213,0.07513,93580.0,93579.0,0.0626]
[1764820845413,0.07513,93580.0,93579.0,0.0732853]
[1764820845613,0.07413,93580.0,93579.0,0.0712853]
[1764820845808,0.07513,93580.0,93579.0,0.0732853]
[1764820848514,0.05744,93580.0,93579.0,0.0732853]
[1764820848721,0.001,93580.0,93579.0,0.0732853]
[1764820848920,0.001,93580.0,93579.0,0.5689253]
[1764820849616,0.05744,93580.0,93579.0,0.5689253]
[1764820849818,0.05744,93580.0,93579.0,0.0732853]
[1764820850023,0.07513,93580.0,93579.0,0.0732853]
[1764820853022,0.05744,93580.0,93579.0,0.0732853]
[1764820854425,0.0303,93580.0,93579.0,0.0732853]
[1764820854625,0.05744,93580.0,93579.0,0.0732853]
[1764820855328,0.001,93580.0,93579.0,0.0732853]
[1764820858118,0.0303,93580.0,93579.0,0.0732853]
[1764820858324,0.0303,93580.0,93579.0,0.20779746]
[1764820858526,0.0303,93580.0,93579.0,0.70339746]
[1764820859617,0.05744,93580.0,93579.0,0.70339746]
[1764820860318,0.0303,93580.0,93579.0,0.70339746]
[1764820860632,0.001,93580.0,93579.0,0.5688853]
[1764820860821,0.05744,93580.0,93579.0,0.5688853]
[1764820861024,0.05744,93580.0,93579.0,0.7033087]
[1764820861531,0.05744,93580.0,93579.0,0.5688853]
[1764820865025,0.05744,93580.0,93579.0,0.7033087]
[1764820865835,0.05744,93580.0,93579.0,0.7043087]
[1764820866527,0.05744,93580.0,93579.0,0.7023087]
[1764820866841,0.05744,93580.0,93579.0,0.7103087]
[1764820867430,0.05644,93580.0,93579.0,0.7033087]
[1764820867631,0.05744,93580.0,93579.0,0.7133087]
[1764820867830,0.001,93580.0,93579.0,0.7133087]
[1764820868029,0.02944,93580.0,93579.0,0.7133087]
[1764820869438,0.02944,93580.0,93579.0,0.5788853]
[1764820871135,0.05724,93580.0,93579.0,0.5788853]
[1764820875343,0.03159231,93580.0,93579.0,0.5788853]
[1764820877438,0.01337,93584.0,93583.0,0.0660748]
[1764820877627,0.00010232,93589.0,93588.0,0.0778342]
[1764820877832,0.00010232,93589.0,93588.0,0.5733942]
[1764820879442,0.00110232,93589.0,93588.0,0.5753942]
[1764820881237,0.05650708,93606.0,93605.0,0.0660723]
[1764820881438,0.05870708,93606.0,93605.0,0.0660723]
[1764820881647,0.08650708,93606.0,93605.0,0.0660723]
[1764820881847,0.08650708,93606.0,93605.0,0.16214305]
[1764820882046,0.08650708,93606.0,93605.0,0.0660723]
[1764820882434,0.08950708,93606.0,93605.0,0.0670723]
[1764820883352,0.09050708,93606.0,93605.0,0.0670723]
[1764820883647,0.08850708,93606.0,93605.0,0.0660723]
[1764820884152,0.08750708,93606.0,93605.0,0.16205359]
[1764820886244,0.08750708,93606.0,93605.0,0.0660723]
[1764820887549,0.08750708,93606.0,93605.0,0.05539]
[1764820887851,0.08750708,93606.0,93605.0,0.02789]
[1764820888050,0.08750708,93606.0,93605.0,0.05539]
[1764820888458,0.0669225,93603.0,93602.0,0.09598129]
[1764820888752,0.05624,93597.0,93596.0,0.00016025]
[1764820888950,0.08624,93597.0,93596.0,0.00016025]
[1764820889340,0.08624,93597.0,93596.0,0.06623355]
[1764820890339,0.08624,93597.0,93596.0,0.06723355]
[1764820892551,0.08624,93597.0,93596.0,0.06623355]
[1764820892756,0.08624,93597.0,93596.0,0.01184355]
[1764820893553,0.08624,93597.0,93596.0,0.00116025]
[1764820893756,0.0969232,93597.0,93596.0,0.00116025]
[1764820894547,0.05579,93582.0,93581.0,0.09598129]
[1764820894852,0.05579,93581.0,93580.0,0.09598129]
[1764820895052,0.08579,93581.0,93580.0,0.09598129]
[1764820895958,0.08679,93581.0,93580.0,0.09598129]
[1764820897455,0.05579,93579.0,93578.0,0.09598129]
[1764820897650,0.05579,93576.0,93571.0,0.00016025]
[1764820897851,0.08579,93576.0,93571.0,0.00016025]
[1764820898154,0.05579,93572.0,93571.0,0.00016025]
[1764820898451,0.08579,93572.0,93571.0,0.00016025]
[1764820899262,0.08590058,93572.0,93571.0,0.00016025]
[1764820899456,0.08690058,93572.0,93571.0,0.00116025]
[1764820901158,0.08590058,93572.0,93571.0,0.00116025]
[1764820901354,0.08690058,93572.0,93571.0,0.00116025]
[1764820901550,0.08990058,93572.0,93571.0,0.00116025]
[1764820903146,0.01768,93565.0,93558.0,0.0106876]
[1764820903351,0.07353,93555.0,93554.0,0.09598129]
[1764820903553,0.07353,93555.0,93548.0,0.1345025]
[1764820903554,0.05585,93549.0,93548.0,0.0106888]
[1764820903753,0.08585,93549.0,93548.0,0.0106888]
[1764820904153,0.08585,93549.0,93548.0,0.0395288]
[1764820905061,0.08585,93549.0,93548.0,0.0678488]
[1764820905263,0.08685,93549.0,93548.0,0.16416145]
[1764820905461,0.08685,93549.0,93548.0,0.0778488]
[1764820905865,0.08685,93549.0,93542.0,0.09598129]
[1764820905866,0.05585,93543.0,93542.0,0.09598129]
[1764820906156,0.05585,93543.0,93539.0,0.00016033]
[1764820906157,0.07353,93540.0,93539.0,0.00016033]
[1764820906356,0.05585,93535.0,93534.0,0.00010591]
[1764820906556,0.08585,93535.0,93534.0,0.00010591]